[Event "Live Chess"]
[Site "Chess.com"]
[Date "2023.05.20"]
[Round "-"]
[White "SupremeTactician"]
[Black "colourmefree"]
[Result "1-0"]
[WhiteElo "2367"]
[BlackElo "397"]
[TimeControl "300"]
[EndTime "15:07:42 PDT"]
[Termination "SupremeTactician won by resignation"]

1. e4 {[%clk 0:04:59]} 1... e6 {[%clk 0:04:59.1]} 2. d4 {[%clk 0:04:58.2]} 2...
d5 {[%clk 0:04:54.7]} 3. Nd2 {[%clk 0:04:57.4]} 3... Nc6 {[%clk 0:04:49.9]} 4.
c3 {[%clk 0:04:55.4]} 4... dxe4 {[%clk 0:04:38.7]} 5. Nxe4 {[%clk 0:04:55.3]}
5... e5 {[%clk 0:04:36.1]} 6. d5 {[%clk 0:04:43.9]} 6... Nce7 {[%clk 0:04:24.2]}
7. c4 {[%clk 0:04:43]} 7... Nf6 {[%clk 0:04:21.4]} 8. Nxf6+ {[%clk 0:04:40.6]}
8... gxf6 {[%clk 0:04:19.5]} 9. Nf3 {[%clk 0:04:39.8]} 9... e4 {[%clk
0:04:15.7]} 10. Nd4 {[%clk 0:04:36.5]} 10... Nc6 {[%clk 0:04:06.5]} 11. dxc6
{[%clk 0:04:34.1]} 11... bxc6 {[%clk 0:04:04.8]} 12. Nxc6 {[%clk 0:04:32.8]}
12... Qxd1+ {[%clk 0:04:00.4]} 13. Kxd1 {[%clk 0:04:32.7]} 13... Bd7 {[%clk
0:03:54.7]} 14. Nd4 {[%clk 0:04:29.3]} 14... Ba4+ {[%clk 0:03:46.8]} 15. b3
{[%clk 0:04:27.6]} 15... Bc5 {[%clk 0:03:35]} 16. Be3 {[%clk 0:04:23.2]} 16...
Bd7 {[%clk 0:03:19.2]} 17. Kc2 {[%clk 0:04:21.1]} 17... Bxd4 {[%clk 0:02:48.2]}
18. Bxd4 {[%clk 0:04:21]} 18... e3 {[%clk 0:02:46.6]} 19. Re1 {[%clk 0:04:18.5]}
19... Bf5+ {[%clk 0:02:39.7]} 20. Bd3 {[%clk 0:04:15.9]} 20... Bxd3+ {[%clk
0:02:32.8]} 21. Kxd3 {[%clk 0:04:15.8]} 21... O-O {[%clk 0:02:22.9]} 22. Rxe3
{[%clk 0:04:12.1]} 22... Rfd8 {[%clk 0:02:19.4]} 23. Kc3 {[%clk 0:04:11.3]}
23... Rd7 {[%clk 0:02:15.7]} 24. Bxf6 {[%clk 0:04:08.8]} 24... Rd6 {[%clk
0:02:08.9]} 25. Rg3+ {[%clk 0:04:06.9]} 25... Kf8 {[%clk 0:02:06.1]} 26. Bg7+
{[%clk 0:04:06.3]} 26... Ke7 {[%clk 0:02:04.2]} 27. Re1+ {[%clk 0:04:06.2]}
27... Kd7 {[%clk 0:02:01.8]} 28. Rf3 {[%clk 0:04:05.7]} 28... Kc6 {[%clk
0:01:59.5]} 29. Rf6 {[%clk 0:04:02.4]} 29... Rxf6 {[%clk 0:01:46.9]} 30. Bxf6
{[%clk 0:04:00.9]} 30... Rd8 {[%clk 0:01:46]} 31. Bxd8 {[%clk 0:03:59.7]} 1-0

[Event "Live Chess"]
[Site "Chess.com"]
[Date "2023.05.20"]
[Round "-"]
[White "parcellforce"]
[Black "Conradical12"]
[Result "0-1"]
[WhiteElo "1381"]
[BlackElo "1601"]
[TimeControl "300"]
[EndTime "15:07:53 PDT"]
[Termination "Conradical12 won by resignation"]

1. d4 {[%clk 0:04:59.1]} 1... e5 {[%clk 0:04:56.5]} 2. c4 {[%clk 0:04:59]} 2...
exd4 {[%clk 0:04:55.1]} 3. Qxd4 {[%clk 0:04:58.9]} 3... Nc6 {[%clk 0:04:53.3]}
4. Qd1 {[%clk 0:04:58.8]} 4... Nf6 {[%clk 0:04:51.6]} 5. Nf3 {[%clk 0:04:58.6]}
5... Bb4+ {[%clk 0:04:50.3]} 6. Bd2 {[%clk 0:04:57]} 6... Qe7 {[%clk 0:04:38.7]}
7. Bxb4 {[%clk 0:04:52]} 7... Qxb4+ {[%clk 0:04:36.3]} 8. Qd2 {[%clk 0:04:51.1]}
8... Ne4 {[%clk 0:04:29.9]} 9. Qxb4 {[%clk 0:04:48.6]} 9... Nxb4 {[%clk
0:04:28.2]} 10. Na3 {[%clk 0:04:46.3]} 10... O-O {[%clk 0:04:26.5]} 11. e3
{[%clk 0:04:44.9]} 11... Re8 {[%clk 0:04:19.9]} 12. Be2 {[%clk 0:04:42.8]} 12...
f5 {[%clk 0:04:18.2]} 13. O-O {[%clk 0:04:41.7]} 13... g5 {[%clk 0:04:14.4]} 14.
Rfd1 {[%clk 0:04:38.3]} 14... c5 {[%clk 0:04:12.7]} 15. b3 {[%clk 0:04:28.9]}
15... a6 {[%clk 0:03:41.2]} 16. Bf1 {[%clk 0:04:13.7]} 16... b6 {[%clk
0:03:40.3]} 17. Nd2 {[%clk 0:04:10]} 17... Nc3 {[%clk 0:03:34.7]} 18. Rdc1
{[%clk 0:03:54.2]} 18... Ncxa2 {[%clk 0:03:30.9]} 19. Rc2 {[%clk 0:03:53.5]}
19... Nxc2 {[%clk 0:03:28.9]} 20. Nxc2 {[%clk 0:03:45.7]} 20... Nb4 {[%clk
0:03:26.7]} 21. Nxb4 {[%clk 0:03:36.8]} 21... cxb4 {[%clk 0:03:26.6]} 22. Nf3
{[%clk 0:03:36.7]} 22... g4 {[%clk 0:03:24.4]} 23. Nd4 {[%clk 0:03:35.9]} 23...
Rf8 {[%clk 0:03:21.9]} 24. Bd3 {[%clk 0:03:32.7]} 24... d6 {[%clk 0:03:19]} 25.
Nc6 {[%clk 0:03:26.2]} 25... Bb7 {[%clk 0:03:14.2]} 26. Nd4 {[%clk 0:03:16]}
26... f4 {[%clk 0:03:11.1]} 27. exf4 {[%clk 0:03:06.6]} 27... Rxf4 {[%clk
0:03:09]} 28. Ne6 {[%clk 0:03:06.4]} 28... Rf6 {[%clk 0:03:04.6]} 29. Nd4 {[%clk
0:02:50.2]} 29... Raf8 {[%clk 0:03:03.1]} 30. Ra2 {[%clk 0:02:32.5]} 30... h5
{[%clk 0:03:01]} 31. Nc2 {[%clk 0:02:24.3]} 31... Rxf2 {[%clk 0:02:57.3]} 0-1

[Event "Live Chess"]
[Site "Chess.com"]
[Date "2023.05.20"]
[Round "-"]
[White "LL220284LL"]
[Black "inspireyou"]
[Result "1-0"]
[WhiteElo "2378"]
[BlackElo "1462"]
[TimeControl "300"]
[EndTime "15:08:00 PDT"]
[Termination "LL220284LL won by resignation"]

1. d4 {[%clk 0:04:58.8]} 1... Nf6 {[%clk 0:04:58.3]} 2. Bg5 {[%clk 0:04:55.7]}
2... d5 {[%clk 0:04:56.6]} 3. e3 {[%clk 0:04:37.7]} 3... c5 {[%clk 0:04:53.3]}
4. Nd2 {[%clk 0:04:31.2]} 4... e6 {[%clk 0:04:45.8]} 5. Ngf3 {[%clk 0:04:27.1]}
5... Nc6 {[%clk 0:04:43.2]} 6. c3 {[%clk 0:04:23.9]} 6... h6 {[%clk 0:04:40.9]}
7. Bh4 {[%clk 0:04:20.6]} 7... a6 {[%clk 0:04:36.1]} 8. Bd3 {[%clk 0:04:17.1]}
8... Be7 {[%clk 0:04:33.3]} 9. O-O {[%clk 0:04:08.7]} 9... O-O {[%clk
0:04:27.9]} 10. Re1 {[%clk 0:04:05.9]} 10... b5 {[%clk 0:04:18.7]} 11. dxc5
{[%clk 0:04:01.2]} 11... Bxc5 {[%clk 0:04:01.9]} 12. e4 {[%clk 0:03:59.5]} 12...
dxe4 {[%clk 0:04:01.8]} 13. Nxe4 {[%clk 0:03:59.4]} 13... Bd6 {[%clk 0:04:01.1]}
14. Nxd6 {[%clk 0:03:56.6]} 1-0

[Event "Live Chess"]
[Site "Chess.com"]
[Date "2023.05.20"]
[Round "-"]
[White "Salpingidis"]
[Black "PiotrJanas"]
[Result "0-1"]
[WhiteElo "2207"]
[BlackElo "1604"]
[TimeControl "300"]
[EndTime "15:08:04 PDT"]
[Termination "PiotrJanas won by checkmate"]

1. d4 {[%clk 0:04:56.9]} 1... d6 {[%clk 0:04:59.3]} 2. c4 {[%clk 0:04:56]} 2...
f5 {[%clk 0:04:54.8]} 3. Nc3 {[%clk 0:04:54.6]} 3... Nf6 {[%clk 0:04:53.9]} 4.
Bg5 {[%clk 0:04:52]} 4... Nbd7 {[%clk 0:04:52.4]} 5. Qc2 {[%clk 0:04:47.9]} 5...
e6 {[%clk 0:04:48.1]} 6. e4 {[%clk 0:04:45.1]} 6... fxe4 {[%clk 0:04:29.7]} 7.
Nxe4 {[%clk 0:04:45]} 7... Be7 {[%clk 0:04:27.7]} 8. Bd3 {[%clk 0:04:39.3]} 8...
Nxe4 {[%clk 0:04:19]} 9. Bxe7 {[%clk 0:04:39.2]} 9... Qxe7 {[%clk 0:04:11.4]}
10. Bxe4 {[%clk 0:04:38.7]} 10... Nf6 {[%clk 0:04:07.2]} 11. Bf3 {[%clk
0:04:32.9]} 11... O-O {[%clk 0:04:04.7]} 12. Ne2 {[%clk 0:04:32.2]} 12... e5
{[%clk 0:03:54.6]} 13. dxe5 {[%clk 0:04:14.8]} 13... Qxe5 {[%clk 0:03:46.7]} 14.
g3 {[%clk 0:04:13.5]} 14... Bh3 {[%clk 0:03:36.7]} 15. O-O-O {[%clk 0:04:09.8]}
15... Rab8 {[%clk 0:03:19.3]} 16. Nf4 {[%clk 0:04:06.5]} 16... Bf5 {[%clk
0:03:07.6]} 17. Qd2 {[%clk 0:03:58.2]} 17... Qc5 {[%clk 0:02:58.6]} 18. Qd4
{[%clk 0:03:42.2]} 18... Qa5 {[%clk 0:02:48.4]} 19. a3 {[%clk 0:03:26.8]} 19...
Rfe8 {[%clk 0:02:38.1]} 20. Nd5 {[%clk 0:03:19.1]} 20... Ne4 {[%clk 0:02:22.1]}
21. Rhe1 {[%clk 0:03:02.7]} 21... Nc5 {[%clk 0:02:04.4]} 22. Re3 {[%clk
0:02:14]} 22... Rxe3 {[%clk 0:01:40.5]} 23. Qxe3 {[%clk 0:02:13.9]} 23... Kf8
{[%clk 0:00:46.5]} 24. Qe7+ {[%clk 0:01:51.6]} 24... Kg8 {[%clk 0:00:45.1]} 25.
Qe3 {[%clk 0:01:51.5]} 25... Kf8 {[%clk 0:00:43.5]} 26. g4 {[%clk 0:01:31.8]}
26... Re8 {[%clk 0:00:39.7]} 27. Qf4 {[%clk 0:01:27.1]} 27... Nb3# {[%clk
0:00:30.2]} 0-1

[Event "Live Chess"]
[Site "Chess.com"]
[Date "2023.05.20"]
[Round "-"]
[White "NomisY"]
[Black "chessfiction"]
[Result "0-1"]
[WhiteElo "1519"]
[BlackElo "2348"]
[TimeControl "300"]
[EndTime "15:08:05 PDT"]
[Termination "chessfiction won by resignation"]

1. d4 {[%clk 0:04:53.9]} 1... d5 {[%clk 0:04:59.1]} 2. c4 {[%clk 0:04:52.9]}
2... e5 {[%clk 0:04:58.4]} 3. dxe5 {[%clk 0:04:51.8]} 3... d4 {[%clk 0:04:56.9]}
4. Nf3 {[%clk 0:04:50.8]} 4... Nc6 {[%clk 0:04:56.3]} 5. a3 {[%clk 0:04:42]}
5... Bg4 {[%clk 0:04:55.1]} 6. Nbd2 {[%clk 0:04:35.9]} 6... Qd7 {[%clk
0:04:53.9]} 7. b4 {[%clk 0:04:29.3]} 7... O-O-O {[%clk 0:04:52.1]} 8. b5 {[%clk
0:04:28.1]} 8... Na5 {[%clk 0:04:50.1]} 9. Qa4 {[%clk 0:04:23.1]} 9... b6 {[%clk
0:04:48.1]} 10. Ne4 {[%clk 0:03:59.7]} 10... Nh6 {[%clk 0:04:45.3]} 11. c5
{[%clk 0:03:57.9]} 11... Qd5 {[%clk 0:04:39.5]} 12. cxb6 {[%clk 0:03:42.9]}
12... axb6 {[%clk 0:04:34.8]} 13. Bxh6 {[%clk 0:02:48.9]} 13... Qxe4 {[%clk
0:04:30.3]} 14. Bd2 {[%clk 0:02:37.4]} 14... Bc5 {[%clk 0:04:24.8]} 15. Bxa5
{[%clk 0:02:23.5]} 15... bxa5 {[%clk 0:04:17.4]} 16. Qxa5 {[%clk 0:02:22.5]}
16... d3 {[%clk 0:04:11.4]} 17. Qa8+ {[%clk 0:02:13.4]} 17... Qxa8 {[%clk
0:04:09.5]} 0-1

[Event "Live Chess"]
[Site "Chess.com"]
[Date "2023.05.20"]
[Round "-"]
[White "Asperasummitatem"]
[Black "Hussamalhaidar"]
[Result "1-0"]
[WhiteElo "1285"]
[BlackElo "1020"]
[TimeControl "300"]
[EndTime "15:08:06 PDT"]
[Termination "Asperasummitatem won by resignation"]

1. e4 {[%clk 0:04:59]} 1... Nc6 {[%clk 0:04:58.2]} 2. Nf3 {[%clk 0:04:56]} 2...
e5 {[%clk 0:04:56.9]} 3. Bb5 {[%clk 0:04:55.7]} 3... a6 {[%clk 0:04:55.2]} 4.
Ba4 {[%clk 0:04:53.8]} 4... Bc5 {[%clk 0:04:52]} 5. c3 {[%clk 0:04:47.4]} 5...
d6 {[%clk 0:04:47.6]} 6. d4 {[%clk 0:04:46.7]} 6... exd4 {[%clk 0:04:43.4]} 7.
cxd4 {[%clk 0:04:45.8]} 7... Ba7 {[%clk 0:04:33.3]} 8. O-O {[%clk 0:04:44.3]}
8... Bg4 {[%clk 0:04:28.8]} 9. e5 {[%clk 0:03:57.5]} 9... dxe5 {[%clk
0:04:23.1]} 10. Bxc6+ {[%clk 0:03:50]} 10... bxc6 {[%clk 0:04:19.1]} 11. dxe5
{[%clk 0:03:48.7]} 11... Qxd1 {[%clk 0:04:13.6]} 12. Rxd1 {[%clk 0:03:46.6]}
12... Bxf3 {[%clk 0:04:08.7]} 13. gxf3 {[%clk 0:03:46.5]} 13... Ne7 {[%clk
0:04:03.4]} 14. b3 {[%clk 0:03:44.8]} 14... O-O {[%clk 0:03:58.8]} 15. Bb2
{[%clk 0:03:44.3]} 15... Rad8 {[%clk 0:03:51.7]} 16. Rxd8 {[%clk 0:03:41.3]}
16... Rxd8 {[%clk 0:03:50.3]} 17. Nc3 {[%clk 0:03:41]} 17... Bd4 {[%clk
0:03:47.1]} 18. Rd1 {[%clk 0:03:36.7]} 18... c5 {[%clk 0:03:40.3]} 19. Ne2
{[%clk 0:03:33]} 19... Nf5 {[%clk 0:03:33]} 20. Nxd4 {[%clk 0:03:30.5]} 20...
cxd4 {[%clk 0:03:28.9]} 21. Kf1 {[%clk 0:03:11.9]} 21... Nh4 {[%clk 0:03:21.2]}
22. Ke2 {[%clk 0:03:03.6]} 22... Ng2 {[%clk 0:03:16]} 23. Rxd4 {[%clk 0:03:00]}
23... Rxd4 {[%clk 0:03:09.1]} 24. Bxd4 {[%clk 0:02:59.3]} 24... Nf4+ {[%clk
0:03:01.8]} 25. Ke3 {[%clk 0:02:57.8]} 25... Nd5+ {[%clk 0:02:59.3]} 26. Ke4
{[%clk 0:02:51.3]} 26... c6 {[%clk 0:02:57.9]} 27. Bc5 {[%clk 0:02:45.9]} 27...
g6 {[%clk 0:02:51.5]} 28. Kd4 {[%clk 0:02:40.4]} 28... h5 {[%clk 0:02:47.4]} 29.
Kc4 {[%clk 0:02:38.8]} 29... Nf4 {[%clk 0:02:34]} 30. Kb4 {[%clk 0:02:35.7]}
30... Nd3+ {[%clk 0:02:31.4]} 31. Kc4 {[%clk 0:02:33.7]} 31... Nxe5+ {[%clk
0:02:24.8]} 32. Kb4 {[%clk 0:02:27.9]} 32... Nxf3 {[%clk 0:02:21.5]} 33. Ka5
{[%clk 0:02:27.5]} 33... Ne1 {[%clk 0:02:04.6]} 34. Kxa6 {[%clk 0:02:26.2]}
34... Nd3 {[%clk 0:01:59.3]} 35. Be3 {[%clk 0:02:19.4]} 35... f5 {[%clk
0:01:49.9]} 36. a4 {[%clk 0:01:59.7]} 36... Kf7 {[%clk 0:01:38.6]} 37. Kb6
{[%clk 0:01:55.8]} 37... Ne5 {[%clk 0:01:24]} 38. a5 {[%clk 0:01:52.8]} 38...
Nd7+ {[%clk 0:01:07.3]} 39. Kxc6 {[%clk 0:01:43.4]} 39... Ke6 {[%clk 0:01:04]}
40. a6 {[%clk 0:01:40.2]} 40... Nb8+ {[%clk 0:00:58.3]} 41. Kb7 {[%clk
0:01:39.1]} 41... Nd7 {[%clk 0:00:49.6]} 42. a7 {[%clk 0:01:36.9]} 42... Nc5+
{[%clk 0:00:48]} 43. Bxc5 {[%clk 0:01:35.2]} 43... Kd5 {[%clk 0:00:45.9]} 44.
Be3 {[%clk 0:01:33.7]} 44... g5 {[%clk 0:00:33.2]} 45. Bxg5 {[%clk 0:01:31.1]}
1-0

[Event "Live Chess"]
[Site "Chess.com"]
[Date "2023.05.20"]
[Round "-"]
[White "blowerd"]
[Black "WilliamofOrange16th"]
[Result "0-1"]
[WhiteElo "1381"]
[BlackElo "1837"]
[TimeControl "300"]
[EndTime "15:08:07 PDT"]
[Termination "WilliamofOrange16th won on time"]

1. e4 {[%clk 0:04:57.5]} 1... d6 {[%clk 0:04:59.1]} 2. Nf3 {[%clk 0:04:56.5]}
2... Nf6 {[%clk 0:04:57.9]} 3. Bc4 {[%clk 0:04:55.6]} 3... Nxe4 {[%clk 0:04:55]}
4. O-O {[%clk 0:04:48.8]} 4... d5 {[%clk 0:04:53.2]} 5. Bb3 {[%clk 0:04:46.6]}
5... c6 {[%clk 0:04:51.7]} 6. d3 {[%clk 0:04:45.4]} 6... Nf6 {[%clk 0:04:50.6]}
7. Bg5 {[%clk 0:04:43.7]} 7... e6 {[%clk 0:04:49.4]} 8. Re1 {[%clk 0:04:42.5]}
8... Be7 {[%clk 0:04:48.3]} 9. Nc3 {[%clk 0:04:40.9]} 9... O-O {[%clk
0:04:47.2]} 10. Ne5 {[%clk 0:04:33.5]} 10... Nbd7 {[%clk 0:04:45.2]} 11. Nxd7
{[%clk 0:04:31.3]} 11... Bxd7 {[%clk 0:04:43.9]} 12. Qe2 {[%clk 0:04:21.3]}
12... h6 {[%clk 0:04:37.5]} 13. Bh4 {[%clk 0:04:18.7]} 13... Nh7 {[%clk
0:04:32.7]} 14. Bxe7 {[%clk 0:04:12.7]} 14... Qxe7 {[%clk 0:04:32.6]} 15. a3
{[%clk 0:03:46.6]} 15... Rae8 {[%clk 0:04:13.3]} 16. Nd1 {[%clk 0:03:41.6]}
16... Qg5 {[%clk 0:04:10.5]} 17. Ne3 {[%clk 0:03:38.3]} 17... e5 {[%clk
0:04:09.2]} 18. Qf3 {[%clk 0:03:35.6]} 18... e4 {[%clk 0:03:54]} 19. dxe4 {[%clk
0:03:31.3]} 19... Rxe4 {[%clk 0:03:51.8]} 20. Qg3 {[%clk 0:03:12.6]} 20... Qf6
{[%clk 0:03:45.8]} 21. c3 {[%clk 0:03:03.4]} 21... Rfe8 {[%clk 0:03:27.1]} 22.
Bc2 {[%clk 0:03:00.5]} 22... Rf4 {[%clk 0:03:24.9]} 23. Rad1 {[%clk 0:02:25.2]}
23... h5 {[%clk 0:03:10.5]} 24. Nf1 {[%clk 0:02:06.6]} 24... Rg4 {[%clk
0:02:55.1]} 25. Rxe8+ {[%clk 0:01:55.6]} 25... Bxe8 {[%clk 0:02:55]} 26. Qe3
{[%clk 0:01:52.3]} 26... Bd7 {[%clk 0:02:45.4]} 27. Qxa7 {[%clk 0:01:47.5]}
27... Nf8 {[%clk 0:02:31.2]} 28. Qxb7 {[%clk 0:01:39.9]} 28... Qg5 {[%clk
0:02:24]} 29. g3 {[%clk 0:01:15.8]} 29... Be6 {[%clk 0:02:21.2]} 30. Qxc6 {[%clk
0:01:07.5]} 30... Rc4 {[%clk 0:02:18.8]} 31. Qe8 {[%clk 0:00:40.3]} 31... h4
{[%clk 0:02:10.6]} 32. Bh7+ {[%clk 0:00:29.3]} 32... Kxh7 {[%clk 0:02:09.6]} 33.
Qxf8 {[%clk 0:00:28]} 33... hxg3 {[%clk 0:02:09]} 34. Nxg3 {[%clk 0:00:24.7]}
34... Rg4 {[%clk 0:01:58.8]} 35. Qd6 {[%clk 0:00:21.7]} 35... Rf4 {[%clk
0:01:49.2]} 36. Rd4 {[%clk 0:00:16.5]} 36... Rxd4 {[%clk 0:01:43.6]} 37. cxd4
{[%clk 0:00:14.8]} 37... Qc1+ {[%clk 0:01:42.5]} 38. Kg2 {[%clk 0:00:13.1]}
38... Qxb2 {[%clk 0:01:41.7]} 39. Qf4 {[%clk 0:00:11.1]} 39... Qxa3 {[%clk
0:01:35.6]} 40. Qh4+ {[%clk 0:00:10]} 40... Kg8 {[%clk 0:01:34.9]} 41. Qd8+
{[%clk 0:00:09]} 41... Qf8 {[%clk 0:01:34.4]} 42. Qxf8+ {[%clk 0:00:05.5]} 42...
Kxf8 {[%clk 0:01:34.3]} 43. Nh5 {[%clk 0:00:03.8]} 43... g6 {[%clk 0:01:32.6]}
44. Nf4 {[%clk 0:00:02.9]} 44... Ke7 {[%clk 0:01:29.7]} 45. Nxe6 {[%clk
0:00:00.9]} 45... Kxe6 {[%clk 0:01:29.6]} 0-1

[Event "Live Chess"]
[Site "Chess.com"]
[Date "2023.05.20"]
[Round "-"]
[White "LodeshChess"]
[Black "JoshMcK"]
[Result "1-0"]
[WhiteElo "1093"]
[BlackElo "1548"]
[TimeControl "300"]
[EndTime "15:08:10 PDT"]
[Termination "LodeshChess won by resignation"]

1. e4 {[%clk 0:04:59.5]} 1... c6 {[%clk 0:04:56.2]} 2. Nf3 {[%clk 0:04:58]} 2...
d5 {[%clk 0:04:53.7]} 3. d3 {[%clk 0:04:57.7]} 3... dxe4 {[%clk 0:04:52.6]} 4.
Ng5 {[%clk 0:04:57.1]} 4... exd3 {[%clk 0:04:50.9]} 5. Bxd3 {[%clk 0:04:56.4]}
5... Nf6 {[%clk 0:04:49.2]} 6. Nxf7 {[%clk 0:04:55.4]} 6... Kxf7 {[%clk
0:04:47.5]} 7. Bg6+ {[%clk 0:04:55]} 7... Kg8 {[%clk 0:04:45.7]} 8. Qxd8 {[%clk
0:04:54.3]} 8... Nbd7 {[%clk 0:04:40.7]} 9. Qc7 {[%clk 0:04:45.7]} 9... Ne5
{[%clk 0:04:36.7]} 10. Qxe5 {[%clk 0:04:40.4]} 10... Ng4 {[%clk 0:04:34.8]} 11.
Qf4 {[%clk 0:04:29]} 1-0

[Event "Live Chess"]
[Site "Chess.com"]
[Date "2023.05.20"]
[Round "-"]
[White "Singapourfeuj"]
[Black "Missedidea"]
[Result "1-0"]
[WhiteElo "2237"]
[BlackElo "1734"]
[TimeControl "300"]
[EndTime "15:08:17 PDT"]
[Termination "Singapourfeuj won by resignation"]

1. d4 {[%clk 0:04:53.1]} 1... Nf6 {[%clk 0:04:58]} 2. Nf3 {[%clk 0:04:50.6]}
2... g6 {[%clk 0:04:56.8]} 3. g3 {[%clk 0:04:46.5]} 3... Bg7 {[%clk 0:04:55.6]}
4. Bg2 {[%clk 0:04:42.2]} 4... O-O {[%clk 0:04:53.9]} 5. O-O {[%clk 0:04:37]}
5... d6 {[%clk 0:04:51.7]} 6. Nc3 {[%clk 0:04:31.9]} 6... Nbd7 {[%clk 0:04:45]}
7. h3 {[%clk 0:04:28.7]} 7... c5 {[%clk 0:04:43.7]} 8. e4 {[%clk 0:04:26.4]}
8... cxd4 {[%clk 0:04:41.8]} 9. Nxd4 {[%clk 0:04:25]} 9... a6 {[%clk 0:04:40.6]}
10. a4 {[%clk 0:04:21.4]} 10... Rb8 {[%clk 0:04:38.5]} 11. Re1 {[%clk 0:04:19]}
11... Qc7 {[%clk 0:04:36.7]} 12. Be3 {[%clk 0:04:16.8]} 12... Nc5 {[%clk
0:04:28.1]} 13. Nd5 {[%clk 0:04:11.8]} 13... Nxd5 {[%clk 0:04:25.6]} 14. exd5
{[%clk 0:04:10.7]} 14... a5 {[%clk 0:04:21.6]} 15. c3 {[%clk 0:04:09.6]} 15...
Bd7 {[%clk 0:04:18.6]} 16. b4 {[%clk 0:04:05]} 16... axb4 {[%clk 0:04:11.5]} 17.
cxb4 {[%clk 0:04:03.7]} 17... Na6 {[%clk 0:04:09.4]} 18. Rc1 {[%clk 0:04:01.5]}
18... Qd8 {[%clk 0:04:04.1]} 19. b5 {[%clk 0:03:59.3]} 19... Nc5 {[%clk
0:04:01.8]} 20. Bg5 {[%clk 0:03:58]} 20... f6 {[%clk 0:03:53.7]} 21. Be3 {[%clk
0:03:54.9]} 21... h6 {[%clk 0:03:50.5]} 22. Qd2 {[%clk 0:03:51.9]} 22... Kh7
{[%clk 0:03:47.7]} 23. a5 {[%clk 0:03:49.9]} 23... f5 {[%clk 0:03:42.9]} 24. b6
{[%clk 0:03:47.6]} 24... Bxd4 {[%clk 0:03:27.2]} 25. Bxd4 {[%clk 0:03:45.3]}
25... Nb3 {[%clk 0:03:25.5]} 26. Qe3 {[%clk 0:03:43.9]} 26... Nxc1 {[%clk
0:03:21.7]} 27. Qxe7+ {[%clk 0:03:42.7]} 27... Qxe7 {[%clk 0:03:13.7]} 28. Rxe7+
{[%clk 0:03:41.1]} 28... Kg8 {[%clk 0:03:06.3]} 29. Rg7+ {[%clk 0:03:39.9]}
29... Kh8 {[%clk 0:03:04.8]} 30. Rxd7+ {[%clk 0:03:38.7]} 30... Kg8 {[%clk
0:03:04.1]} 31. Rg7+ {[%clk 0:03:37.5]} 31... Kh8 {[%clk 0:03:03]} 32. Rxg6+
{[%clk 0:03:36.6]} 32... Kh7 {[%clk 0:03:00.9]} 33. Rg7+ {[%clk 0:03:35.3]}
33... Kh8 {[%clk 0:02:59.6]} 34. Rxb7+ {[%clk 0:03:33.6]} 34... Kg8 {[%clk
0:02:56.7]} 35. Rxb8 {[%clk 0:03:31.1]} 35... Rxb8 {[%clk 0:02:50.2]} 36. Bf1
{[%clk 0:03:25.9]} 36... Nb3 {[%clk 0:02:47.8]} 37. a6 {[%clk 0:03:24.3]} 37...
Nxd4 {[%clk 0:02:46]} 38. a7 {[%clk 0:03:23.3]} 38... Nf3+ {[%clk 0:02:38.2]}
39. Kg2 {[%clk 0:03:21]} 39... Ne1+ {[%clk 0:02:35.5]} 40. Kh1 {[%clk
0:03:20.1]} 40... Rc8 {[%clk 0:02:15.2]} 41. b7 {[%clk 0:03:19]} 41... Rc1
{[%clk 0:02:13.7]} 42. b8=Q+ {[%clk 0:03:17.1]} 42... Kg7 {[%clk 0:02:12.6]} 43.
Qb2+ {[%clk 0:03:15.8]} 1-0

[Event "Live Chess"]
[Site "Chess.com"]
[Date "2023.05.20"]
[Round "-"]
[White "McSlash1"]
[Black "Long1968"]
[Result "1-0"]
[WhiteElo "2012"]
[BlackElo "1205"]
[TimeControl "300"]
[EndTime "15:08:18 PDT"]
[Termination "McSlash1 won on time"]

1. e4 {[%clk 0:04:58.8]} 1... e6 {[%clk 0:04:56.6]} 2. d4 {[%clk 0:04:57.7]}
2... d5 {[%clk 0:04:55.3]} 3. Nd2 {[%clk 0:04:57.2]} 3... Nf6 {[%clk 0:04:52.2]}
4. e5 {[%clk 0:04:56.5]} 4... Nfd7 {[%clk 0:04:50.3]} 5. Bd3 {[%clk 0:04:56.4]}
5... c5 {[%clk 0:04:48.4]} 6. c3 {[%clk 0:04:55.9]} 6... Nc6 {[%clk 0:04:45.4]}
7. Ngf3 {[%clk 0:04:55.1]} 7... Qb6 {[%clk 0:04:43.6]} 8. dxc5 {[%clk 0:04:54]}
8... Bxc5 {[%clk 0:04:41.2]} 9. Qe2 {[%clk 0:04:53.2]} 9... O-O {[%clk 0:04:35]}
10. O-O {[%clk 0:04:52.2]} 10... a6 {[%clk 0:04:29.5]} 11. Nb3 {[%clk
0:04:46.1]} 11... Be7 {[%clk 0:04:11.9]} 12. Ng5 {[%clk 0:04:43.2]} 12... h6
{[%clk 0:04:01.5]} 13. h4 {[%clk 0:04:29.5]} 13... hxg5 {[%clk 0:03:21]} 14.
hxg5 {[%clk 0:04:29.4]} 14... g6 {[%clk 0:03:12.5]} 15. Be3 {[%clk 0:04:25.7]}
15... Qc7 {[%clk 0:02:57]} 16. f4 {[%clk 0:04:23.9]} 16... b5 {[%clk 0:02:42.2]}
17. Rf3 {[%clk 0:04:21.5]} 17... Bb7 {[%clk 0:02:32.1]} 18. Qc2 {[%clk
0:04:19.3]} 18... Kg7 {[%clk 0:02:04.6]} 19. g4 {[%clk 0:04:12.2]} 19... Rh8
{[%clk 0:02:00]} 20. f5 {[%clk 0:04:09.7]} 20... Rh4 {[%clk 0:01:52.2]} 21. fxg6
{[%clk 0:04:01.3]} 21... Rxg4+ {[%clk 0:01:43.7]} 22. Kf2 {[%clk 0:03:59.4]}
22... Ndxe5 {[%clk 0:01:34.2]} 23. gxf7 {[%clk 0:03:34.3]} 23... Nxf3 {[%clk
0:01:26.7]} 24. Bh7 {[%clk 0:03:27.2]} 24... Nce5 {[%clk 0:01:10.1]} 25. Bd4
{[%clk 0:03:23.5]} 25... Bxg5 {[%clk 0:00:55.6]} 26. Qg6+ {[%clk 0:02:54.9]}
26... Kf8 {[%clk 0:00:47.1]} 27. Qg8+ {[%clk 0:02:43.5]} 27... Ke7 {[%clk
0:00:44.2]} 28. Bc5+ {[%clk 0:02:42.9]} 28... Kd7 {[%clk 0:00:37]} 29. f8=Q
{[%clk 0:02:36.1]} 29... Rxf8 {[%clk 0:00:31.7]} 30. Qxf8 {[%clk 0:02:36]} 30...
Qd8 {[%clk 0:00:16]} 31. Qd6+ {[%clk 0:02:30.5]} 31... Kc8 {[%clk 0:00:06.1]}
32. Qxe6+ {[%clk 0:02:26]} 1-0